{"text_format":"1","workbook":"xlsx","n_sheets":5,"sheets":["Таблиця для звіту","Лист1","Лист2","Лист3","Корегована таблиця"],"not_rendered":{"charts":0,"images":0,"macros":0,"external_links":0,"defined_names":4,"comments":0,"pivot_tables":0},"unopened":[],"bounds":{"document_bytes":16777216,"sheet_cells":100000,"rows_first":2000,"rows_last":500,"rows_between":2000,"halvings":0,"cell_chars":16384,"cell_head_chars":4096},"cells_cut":0,"cells_raw":0,"read":"whole","date_system":"1900"}

{"sheet":"Таблиця для звіту","index":0,"n_rows":69,"n_cols":7,"rows_kept":69,"cut":false,"hidden":false,"merged":[[58,1,65,1],[58,3,65,3],[66,0,66,3],[68,1,69,6],[5,1,23,1],[5,3,23,3],[24,1,57,1],[24,3,57,3],[0,0,1,6],[2,0,3,0],[2,1,3,1],[2,2,3,2],[2,3,3,3],[2,4,3,4],[2,5,3,5],[2,6,3,6]]}
["Перелік цільових програм, які  виконуються за  2018 рік з використанням усіх джерел фінансування"]
[]
["№ п.п.","Назва програми дата і номер рішення про її затвердження","Основні заходи","Головний розпорядник коштів та виконавці","Планові обсяги фінансування на 2018 рік відповідно до Програми (потреба) з бюджету міста","Передба-чено бюджетом міста на 2018 рік","Фактичні обсяги фінансування за 9 місяців 2018 року з бюджету міста"]
[]
[1,2,3,4,5,6,7]
[null,"Програма соціально-правового захисту дітей на 2017-2021 роки","всього по програмі","Управління соціальних служб для сім\"ї, дітей та молоді Луцької міської ради",{"$f":"121100+51900","v":173000},{"$f":"E6","v":173000},{"$f":"SUM(G7:G21)","v":173000.00000000003}]
[null,null,"Про проведення заходів",null,{"$f":"3800+394.92+2972","v":7166.92},7166.92,{"$f":"E7","v":7166.92}]
[null,null,"Про проведення екскурсії зоопарком",null,{"$f":"1200+96+100","v":1396},1396,1396]
[null,null,"Про проведення заходів",null,{"$f":"1493+3411.69","v":4904.6900000000005},4904.6900000000005,4904.6900000000005]
[null,null,"Про здійснення соціальної роботи з сім’ями які опинились в складних життєвих обставинах",null,5146.87,5146.87,5146.87]
[null,null,"Про участь дітей у Міжнародному фестивалі аутизму Anca",null,{"$f":"102269.92+15200","v":117469.92},117469.92,117469.92]
[null,null,"Про проведення заходів до Дня матері",null,2159,2159,2159]
[null,null,"Про проведення екскурсії у кінний-спортивний клуб Cloverland Horse Club",null,1088.04,{"$f":"E13","v":1088.04},1088.04]
[null,null,"Про здійснення соціальної роботи з сім’ями які опинились в складних життєвих обставинах",null,{"$f":"2997.01+670.14+55.85+819.06","v":4542.0599999999995},4542.0599999999995,4542.0599999999995]
[null,null,"Про проведення екскурсії у кінний-спортивний клуб Cloverland Horse Club",null,1201.5999999999999,1201.5999999999999,1201.5999999999999]
[null,null,"Про проведення конкурсів малюнку на асфальті ",null,{"$f":"1488+460.8+1040+63+214.89","v":3266.69},3266.69,3266.69]
[null,null,"Про проведення заходу “Я-лучанин, я-лучанка”",null,{"$f":"3276+71.82+700","v":4047.82},4047.82,4047.82]
[null,null,"Про проведення заходів",null,{"$f":"1447.2","v":1447.2},1447.2,1447.2]
[null,null,"Про реалізацію соціального проекту “Соціальні послуги в громаді”",null,{"$f":"1310.34+800+3547+779.24+260+2076+1763.5+625+2675+2214.45","v":16050.529999999999},16050.529999999999,16050.529999999999]
[null,null,"Про здійснення соціальної роботи з сім’ями які опинились в складних життєвих обставинах",null,2020,2020,2020]
[null,null,"Про проведення благодійного заходу",null,1092.6600000000001,1092.6600000000001,1092.6600000000001]
[null,null,"Про проведення заходів"]
[null,null,"Про проведення майстер-класів по миловарінню"]
[null,null,"Про здійснення соціальної роботи з сім’ями які опинились в складних життєвих обставинах"]
[null,"Програма надання інтегрованих соціальних послуг з питань сім’ї, дітей та молоді, попередження насильства в сім’ї та протидії торгівлі людьми на 2018-2020 роки, що затверджена рішенням міської ради від 29.11.2017 №34/12 ","всього по програмі","Управління соціальних служб для сім\"ї, дітей та молоді Луцької міської ради Управління соціальних служб для сім\"ї, дітей та молоді Луцької міської ради",{"$f":"390600+280000+87400","v":758000},{"$f":"E25","v":758000},{"$f":"SUM(G26:G58)","v":757999.58000000007}]
[null,null,"Про зимове таборування",null,14000,{"$f":"E26","v":14000},{"$f":"E26","v":14000}]
[null,null,"Про проведення соціального проекту “Наставництво в дії”",null,{"$f":"3575+914.04+108","v":4597.04},{"$f":"E27","v":4597.04},{"$f":"E27","v":4597.04}]
[null,null,"Про відвідування фестивалю “Червоноград скликає друзів”",null,{"$f":"5500+3870","v":9370},9370,9370]
[null,null,"Про проведення культурно-мистецьких заходів соціального спрямування до Великодніх свят",null,{"$f":"4378.14+2878+1800+1193.76+384.1+1815","v":12449},12449,12449]
[null,null,"Про проведення заходу спільно з ГО Янголята",null,{"$f":"585.9+4320","v":4905.8999999999996},4905.8999999999996,4905.8999999999996]
[null,null,"Про проведення міжнародної конференції",null,{"$f":"8700+411.27+7300+2100+344.47+1903.6+8895.29+4946.23+2016.8+5040+600+4000","v":46257.66},46257.66,46257.66]
[null,null,"Про участь у фестивалі “Долина нарцисів”",null,{"$f":"15600","v":15600},15600,15600]
[null,null,"Про проведення заходу “Ми радість світу”",null,{"$f":"1500+550","v":2050},2050,2050]
[null,null,"Про проведення заходу “Моє веселкове дитинство”",null,{"$f":"7507.45+1230.96+216+144+373.92+9298+426.66+612.65+3342+1300+4600+400+1000+900","v":31351.640000000003},31351.640000000003,31351.640000000003]
[null,null,"Про проведення заходу “Всі ми родом з дитинства”",null,{"$f":"3765.26+553.68+11011","v":15329.94},15329.94,15329.94]
[null,null,"Про організацію відпочинку Джерело життя ГО",null,{"$f":"94350+43000","v":137350},137350,137350]
[null,null,"Про організацію відпочинку Повір у себе ГО",null,{"$f":"33150+43000","v":76150},76150,76150]
[null,null,"Про участь у фестивалі Дауни ГО",null,5900,5900,5900]
[null,null,"Про реалізацію соціального проекту “ЕкоЛіто”",null,{"$f":"1664+405+4160+382.5","v":6611.5},6611.5,6611.5]
[null,null,"Про організацію літнього оздоровлення в таборі с.Дубечне, Старовижівського району",null,5500,5500,5500]
[null,null,"Про поїздку дітей \nу м.Таураге, Литва",null,{"$f":"1340+55278+800+2950","v":60368},60368,60368]
[null,null,"Про відпочинок та оздоровлення дітей на базі Парасолька",null,9000,9000,9000]
[null,null,"Про організацію літнього оздоровлення в таборі с.Дубечне, Старовижівського району",null,11000,11000,11000]
[null,null,"Про соціальний проект “Креативний простір робототехніки”",null,{"$f":"8050+236","v":8286},8286,8286]
[null,null,"Про затвердження переліку проектів, визнаних переможцями Конкурсу соціальних проектів",null,{"$f":"11104+8896+882.45+1400+992+2845+3000+1000+2500+1326+2500+3500","v":39945.449999999997},39945.449999999997,39945.449999999997]
[null,null,"Про проведення благодійного заходу Скоро до школи",null,{"$f":"76682.15+84+7915.91","v":84682.06},84682.06,84682.06]
[null,null,"Про проведення дитячого свята “Луцьк в золотавих барвах”",null,{"$f":"5120+647+99.9+4600","v":10466.9},10466.9,10466.9]
[null,null,"Про проведення дитячої квест-гри “Мій величний Лучеськ”",null,979.26,979.26,979.26]
[null,null,"Про проведення форуму сім’ї “Щаслива родина — міцна Україна”",null,13870,13870,13870]
[null,null,"Про сімейно-дозвіллєвий захід “ПереХресток”",null,1075,1075,1075]
[null,null,"Про участь у фестивалі\n“Радість творчості — душа”",null,2750,2750,2750]
[null,null,"Про проведення флешмобу",null,440,440,440]
[null,null,"Про проведення груп взаємопідтримки для батьків дітей з особливими потребами",null,{"$f":"4542.06+4041.2","v":8583.26},8583.26,8583.26]
[null,null,"Про конкурс малюнку \"Зимовий Луцьк\"",null,{"$f":"380.1+2551+351.54+2880","v":6162.6399999999994},6162.6399999999994,6162.6399999999994]
[null,null,"Про заходи до Дня Святого Миколая",null,{"$f":"280*210","v":58800},58800,58800]
[null,null,"Про заходи до новорічно-різвдяних свят",null,{"$f":"30000+14720.13","v":44720.13},44720.13,44720.13]
[null,null,"Про проведення свята \"Запалення вогнів новорічної ялинки\"",null,{"$f":"6500+583.2","v":7083.2},7083.2,7083.2]
[null,null,"Про новорічно-різдвяні зустрічі",null,{"$f":"515+1850","v":2365},{"$f":"E58","v":2365},{"$f":"E58","v":2365}]
[null,"Комплексна програма підтримки військовослужбовців, призваних з міста Луцька на військову службу по мобілізації, членів їх сімей, а також сімей загиблих (померлих) військовослужбовців — лучан","всього по програмі","Управління соціальних служб для сім\"ї, дітей та молоді Луцької міської ради",84000,{"$f":"E59","v":84000},{"$f":"SUM(G60:G66)","v":83996.93}]
[null,null,"Про проведення Анти Стрес ZONE",null,{"$f":"5693.53+2797.96+1500.6","v":9992.09},9992.09,{"$f":"E60","v":9992.09}]
[null,null,"Про проведення благодійного заходу в рамках соціально-освітнього проекту “ОгоРодина”",null,1650,1650,1650]
[null,null,"Про проведення заходів до Дня Святого Миколая",null,{"$f":"280*90","v":25200},25200,25200]
[null,null,"Про здійснення соціальної роботи з сім’ями учасників АТО",null,{"$f":"2011.84+3030.9","v":5042.74},5042.74,5042.74]
[null,null,"Про проведення арт-терапії",null,{"$f":"4600.1+3000","v":7600.1},7600.1,7600.1]
[null,null,"Про заходи до новорічно-різвдяних свят",null,{"$f":"26950+5000","v":31950},31950,31950]
[null,null,"Про виготовлення друкованої інформаційної продукції",null,2562,{"$f":"E66","v":2562},{"$f":"E66","v":2562}]
["Всього по програмах",null,null,null,{"$f":"E6+E25+E59","v":1015000},{"$f":"E67","v":1015000},{"$f":"G6+G25+G59","v":1014996.51}]
[null,null,null,null,{"$f":"E67+G68","v":1015000}]
[null,"Начальник управління                                                                                                      Ліна Галан"]

{"sheet":"Лист1","index":1,"n_rows":19,"n_cols":4,"rows_kept":19,"cut":false,"hidden":false,"merged":[[0,3,1,3],[3,0,18,0],[0,0,1,0],[0,1,1,1],[0,2,1,2]]}
["Назва програми дата і номер рішення про її затвердження","Основні заходи","Планові обсяги фінансування на 2018 рік ","Фактичні обсяги фінансування за 12 місяців 2018 р."]
[]
[2,3,5,7]
["Програма соціально-правового захисту дітей на 2017-2021 роки","всього по програмі",{"$f":"121100+51900","v":173000},{"$f":"SUM(D5:D19)","v":173000.00000000003}]
[null,"Про проведення заходів",{"$f":"3800+394.92+2972","v":7166.92},{"$f":"C5","v":7166.92}]
[null,"Про проведення екскурсії зоопарком",{"$f":"1200+96+100","v":1396},1396]
[null,"Про проведення заходів",{"$f":"1493+3411.69","v":4904.6900000000005},4904.6900000000005]
[null,"Про здійснення соціальної роботи з сім’ями які опинились в складних життєвих обставинах",5146.87,5146.87]
[null,"Про участь дітей у Міжнародному фестивалі аутизму Anca",{"$f":"102269.92+15200","v":117469.92},117469.92]
[null,"Про проведення заходів до Дня матері",2159,2159]
[null,"Про проведення екскурсії у кінний-спортивний клуб Cloverland Horse Club",1088.04,1088.04]
[null,"Про здійснення соціальної роботи з сім’ями які опинились в складних життєвих обставинах",{"$f":"2997.01+670.14+55.85+819.06","v":4542.0599999999995},4542.0599999999995]
[null,"Про проведення екскурсії у кінний-спортивний клуб Cloverland Horse Club",1201.5999999999999,1201.5999999999999]
[null,"Про проведення конкурсів малюнку на асфальті ",{"$f":"1488+460.8+1040+63+214.89","v":3266.69},3266.69]
[null,"Про проведення заходу “Я-лучанин, я-лучанка”",{"$f":"3276+71.82+700","v":4047.82},4047.82]
[null,"Про проведення заходів",{"$f":"1447.2","v":1447.2},1447.2]
[null,"Про реалізацію соціального проекту “Соціальні послуги в громаді”",{"$f":"1310.34+800+3547+779.24+260+2076+1763.5+625+2675+2214.45","v":16050.529999999999},16050.529999999999]
[null,"Про здійснення соціальної роботи з сім’ями які опинились в складних життєвих обставинах",2020,2020]
[null,"Про проведення благодійного заходу",1092.6600000000001,1092.6600000000001]

{"sheet":"Лист2","index":2,"n_rows":37,"n_cols":4,"rows_kept":37,"cut":false,"hidden":false,"merged":[[0,3,1,3],[3,0,36,0],[0,0,1,0],[0,1,1,1],[0,2,1,2]]}
["Назва програми дата і номер рішення про її затвердження","Основні заходи","Планові обсяги фінансування на 2018 рік ","Фактичні обсяги фінансування за 12 місяців 2018 р."]
[]
[2,3,5,7]
["Програма надання інтегрованих соціальних послуг з питань сім’ї, дітей та молоді, попередження насильства в сім’ї та протидії торгівлі людьми на 2018-2020 роки, що затверджена рішенням міської ради від 29.11.2017 №34/12 ","всього по програмі",{"$f":"390600+280000+87400","v":758000},{"$f":"SUM(D5:D37)","v":757999.58000000007}]
[null,"Про зимове таборування",14000,{"$f":"C5","v":14000}]
[null,"Про проведення соціального проекту “Наставництво в дії”",{"$f":"3575+914.04+108","v":4597.04},{"$f":"C6","v":4597.04}]
[null,"Про відвідування фестивалю “Червоноград скликає друзів”",{"$f":"5500+3870","v":9370},9370]
[null,"Про проведення культурно-мистецьких заходів соціального спрямування до Великодніх свят",{"$f":"4378.14+2878+1800+1193.76+384.1+1815","v":12449},12449]
[null,"Про проведення заходу спільно з ГО Янголята",{"$f":"585.9+4320","v":4905.8999999999996},4905.8999999999996]
[null,"Про проведення міжнародної конференції",{"$f":"8700+411.27+7300+2100+344.47+1903.6+8895.29+4946.23+2016.8+5040+600+4000","v":46257.66},46257.66]
[null,"Про участь у фестивалі “Долина нарцисів”",{"$f":"15600","v":15600},15600]
[null,"Про проведення заходу “Ми радість світу”",{"$f":"1500+550","v":2050},2050]
[null,"Про проведення заходу “Моє веселкове дитинство”",{"$f":"7507.45+1230.96+216+144+373.92+9298+426.66+612.65+3342+1300+4600+400+1000+900","v":31351.640000000003},31351.640000000003]
[null,"Про проведення заходу “Всі ми родом з дитинства”",{"$f":"3765.26+553.68+11011","v":15329.94},15329.94]
[null,"Про організацію відпочинку Джерело життя ГО",{"$f":"94350+43000","v":137350},137350]
[null,"Про організацію відпочинку Повір у себе ГО",{"$f":"33150+43000","v":76150},76150]
[null,"Про участь у фестивалі Дауни ГО",5900,5900]
[null,"Про реалізацію соціального проекту “ЕкоЛіто”",{"$f":"1664+405+4160+382.5","v":6611.5},6611.5]
[null,"Про організацію літнього оздоровлення в таборі с.Дубечне, Старовижівського району",5500,5500]
[null,"Про поїздку дітей \nу м.Таураге, Литва",{"$f":"1340+55278+800+2950","v":60368},60368]
[null,"Про відпочинок та оздоровлення дітей на базі Парасолька",9000,9000]
[null,"Про організацію літнього оздоровлення в таборі с.Дубечне, Старовижівського району",11000,11000]
[null,"Про соціальний проект “Креативний простір робототехніки”",{"$f":"8050+236","v":8286},8286]
[null,"Про затвердження переліку проектів, визнаних переможцями Конкурсу соціальних проектів",{"$f":"11104+8896+882.45+1400+992+2845+3000+1000+2500+1326+2500+3500","v":39945.449999999997},39945.449999999997]
[null,"Про проведення благодійного заходу Скоро до школи",{"$f":"76682.15+84+7915.91","v":84682.06},84682.06]
[null,"Про проведення дитячого свята “Луцьк в золотавих барвах”",{"$f":"5120+647+99.9+4600","v":10466.9},10466.9]
[null,"Про проведення дитячої квест-гри “Мій величний Лучеськ”",979.26,979.26]
[null,"Про проведення форуму сім’ї “Щаслива родина — міцна Україна”",13870,13870]
[null,"Про сімейно-дозвіллєвий захід “ПереХресток”",1075,1075]
[null,"Про участь у фестивалі\n“Радість творчості — душа”",2750,2750]
[null,"Про проведення флешмобу",440,440]
[null,"Про проведення груп взаємопідтримки для батьків дітей з особливими потребами",{"$f":"4542.06+4041.2","v":8583.26},8583.26]
[null,"Про конкурс малюнку \"Зимовий Луцьк\"",{"$f":"380.1+2551+351.54+2880","v":6162.6399999999994},6162.6399999999994]
[null,"Про заходи до Дня Святого Миколая",{"$f":"280*210","v":58800},58800]
[null,"Про заходи до новорічно-різвдяних свят",{"$f":"30000+14720.13","v":44720.13},44720.13]
[null,"Про проведення свята \"Запалення вогнів новорічної ялинки\"",{"$f":"6500+583.2","v":7083.2},7083.2]
[null,"Про новорічно-різдвяні зустрічі",{"$f":"515+1850","v":2365},{"$f":"C37","v":2365}]

{"sheet":"Лист3","index":3,"n_rows":10,"n_cols":4,"rows_kept":10,"cut":false,"hidden":false,"merged":[[0,3,1,3],[0,0,1,0],[0,1,1,1],[2,0,9,0],[0,2,1,2],[2,8,2,10]]}
["Назва програми дата і номер рішення про її затвердження","Основні заходи","Планові обсяги фінансування на 2018 рік ","Фактичні обсяги фінансування за 12 місяців 2018 р."]
[]
["Комплексна програма підтримки військовослужбовців, призваних з міста Луцька на військову службу по мобілізації, членів їх сімей, а також сімей загиблих (померлих) військовослужбовців — лучан","всього по програмі",84000,{"$f":"SUM(D4:D10)","v":83996.93}]
[null,"Про проведення Анти Стрес ZONE",{"$f":"5693.53+2797.96+1500.6","v":9992.09},{"$f":"C4","v":9992.09}]
[null,"Про проведення благодійного заходу в рамках соціально-освітнього проекту “ОгоРодина”",1650,1650]
[null,"Про проведення заходів до Дня Святого Миколая",{"$f":"280*90","v":25200},25200]
[null,"Про здійснення соціальної роботи з сім’ями учасників АТО",{"$f":"2011.84+3030.9","v":5042.74},5042.74]
[null,"Про проведення арт-терапії",{"$f":"4600.1+3000","v":7600.1},7600.1]
[null,"Про заходи до новорічно-різвдяних свят",{"$f":"26950+5000","v":31950},31950]
[null,"Про виготовлення друкованої інформаційної продукції",2562,{"$f":"C10","v":2562}]

{"sheet":"Корегована таблиця","index":4,"n_rows":178,"n_cols":17,"rows_kept":178,"cut":false,"hidden":false,"merged":[[174,0,174,3],[175,0,176,3],[177,0,177,3],[170,0,170,3],[171,0,171,8],[172,0,173,0],[172,1,173,1],[172,2,173,2],[172,3,173,3],[166,0,166,3],[167,0,167,8],[168,0,169,0],[168,1,169,1],[168,2,169,2],[168,3,169,3],[162,0,162,3],[163,0,163,3],[164,0,165,0],[164,1,165,1],[164,2,165,2],[164,3,165,3],[155,0,155,3],[157,0,157,3],[158,0,158,3],[159,0,159,8],[160,0,161,0],[160,1,161,1],[160,2,161,2],[160,3,161,3],[147,0,147,3],[148,0,148,3],[149,0,149,8],[151,0,151,3],[152,0,152,3],[153,0,153,8],[135,8,136,8],[138,0,138,3],[141,0,141,3],[144,0,144,3],[145,0,146,0],[145,1,146,1],[145,2,146,2],[145,3,146,3],[131,7,132,7],[131,8,132,8],[134,0,134,3],[135,0,136,0],[135,1,136,1],[135,2,136,2],[135,3,136,3],[135,4,136,4],[135,5,136,5],[135,7,136,7],[131,0,132,0],[131,1,132,1],[131,2,132,2],[131,3,132,3],[131,4,132,4],[131,5,132,5],[127,0,127,3],[128,0,129,0],[128,1,129,1],[128,2,129,2],[128,3,129,3],[130,0,130,3],[121,8,122,8],[124,0,124,3],[125,0,126,0],[125,1,126,1],[125,2,126,2],[125,3,126,3],[118,0,118,3],[119,0,119,3],[120,0,120,8],[121,0,122,0],[121,1,122,1],[121,2,122,2],[121,3,122,3],[121,4,122,4],[121,5,122,5],[121,7,122,7],[113,0,114,0],[113,1,114,1],[113,2,114,2],[113,3,114,3],[115,0,115,3],[116,0,117,0],[116,1,117,1],[116,2,117,2],[116,3,117,3],[109,0,109,8],[110,0,111,0],[110,1,111,1],[110,2,111,2],[110,3,111,3],[112,0,112,3],[105,0,106,0],[105,1,106,1],[105,2,106,2],[105,3,106,3],[107,0,107,3],[108,0,108,3],[98,0,98,3],[99,0,99,3],[100,0,100,8],[102,0,102,3],[103,0,103,3],[104,0,104,8],[93,0,93,3],[94,0,94,3],[95,0,95,8],[96,0,97,0],[96,1,97,1],[96,2,97,2],[96,3,97,3],[88,0,88,3],[89,0,89,3],[90,0,90,8],[91,0,92,0],[91,1,92,1],[91,2,92,2],[91,3,92,3],[83,0,84,0],[83,1,84,1],[83,2,84,2],[83,3,84,3],[85,0,85,3],[86,0,87,0],[86,1,87,1],[86,2,87,2],[86,3,87,3],[79,0,79,8],[80,0,81,0],[80,1,81,1],[80,2,81,2],[80,3,81,3],[82,0,82,3],[75,0,76,0],[75,1,76,1],[75,2,76,2],[75,3,76,3],[77,0,77,3],[78,0,78,3],[68,0,68,3],[69,0,69,3],[70,0,70,8],[72,0,72,3],[73,0,73,3],[74,0,74,8],[58,0,58,8],[61,0,61,3],[63,0,63,3],[64,0,64,3],[65,0,65,8],[66,0,67,0],[66,1,67,1],[66,2,67,2],[66,3,67,3],[54,0,55,0],[54,1,55,1],[54,2,55,2],[54,3,55,3],[56,0,56,3],[57,0,57,3],[50,0,50,3],[51,0,52,0],[51,1,52,1],[51,2,52,2],[51,3,52,3],[53,0,53,3],[45,0,45,3],[46,0,46,3],[47,0,47,8],[48,0,49,0],[48,1,49,1],[48,2,49,2],[48,3,49,3],[40,0,40,3],[41,0,41,3],[42,0,42,8],[43,0,44,0],[43,1,44,1],[43,2,44,2],[43,3,44,3],[35,0,35,3],[36,0,36,3],[37,0,37,8],[38,0,39,0],[38,1,39,1],[38,2,39,2],[38,3,39,3],[30,0,30,3],[31,0,31,3],[32,0,32,8],[33,0,34,0],[33,1,34,1],[33,2,34,2],[33,3,34,3],[26,0,26,3],[27,0,27,8],[28,0,29,0],[28,1,29,1],[28,2,29,2],[28,3,29,3],[22,0,22,3],[23,0,24,0],[23,1,24,1],[23,2,24,2],[23,3,24,3],[25,0,25,3],[18,0,18,3],[19,0,19,8],[20,0,21,0],[20,1,21,1],[20,2,21,2],[20,3,21,3],[14,0,14,3],[15,0,16,0],[15,1,16,1],[15,2,16,2],[15,3,16,3],[17,0,17,3],[9,0,9,3],[10,0,10,3],[10,9,11,9],[11,0,11,8],[12,0,13,0],[12,1,13,1],[12,2,13,2],[12,3,13,3],[3,10,3,12],[3,13,3,16],[6,0,6,8],[7,0,8,0],[7,1,8,1],[7,2,8,2],[7,3,8,3],[0,8,0,9],[1,0,2,8],[3,0,4,0],[3,1,4,1],[3,2,4,2],[3,3,4,3],[3,4,4,5],[3,6,3,8],[3,9,4,9]]}
[null,null,null,null,null,null,null,null,"Додаток 2"]
["Перелік цільових програм, які планується виконувати у 2014-2015 роках з використанням усіх джерел фінансування"]
[]
["№ п.п.","Назва програми дата і номер рішення про її затвердження","Захід","Головний розпорядник коштів, виконавці","Потреба в коштах на         2014-2015рр., тис.грн.       ",null,"Планові обсяги фінансування на 2014 рік відповідно до Програми",null,null,"Передбачено бюджетом на 2014 рік","Фактичні обсяги фінансування",null,null,"Стан виконання заходів Програми"]
[null,null,null,null,null,null,"Всього тис.грн.","в т.ч. державного бюджету тис.грн.","в т.ч. бюджету міста тис.грн.",null,"Всього тис.грн.","в т.ч.державного бюджету тис.грн.","в т.ч.бюджету міста тис.грн.","Фактично виконано робіт за І півріччя 2014 р",null,"% вик-ня від планових обсягів всього   гр.12/гр.5","% фін-ня                        від передбачених з бюджету міста   гр.11/гр.8"]
[1,2,3,4,5,6,5,6,7,8,9,10,11,12,null,13,14]
["Відділ у справах сім'ї та молоді"]
[1,"Міська програма підтримки дітей, молоді, жінок та сім'ї на 2012-2015 роки       Р-ня ЛМР від 01.12.2011 №16/25, від 06.06.2012 №25/108                                                              ",null,"Виконавчий комітет, відділ у справах сім'ї та молоді","2014 рік",295,null,"-",295]
[null,null,null,null,"2015 рік",295,null,"-",295]
["Всього по програмі",null,null,null,null,590,null,"-",{"$f":"SUM(I8:I9)","v":590}]
["Всього по відділу",null,null,null,null,590,null,"-",590]
["Служба у справах дітей"]
[2,"Міська програма соціально-правового захисту дітей  на 2012-2016 роки","Р-ня ЛМР від 01.12.2011 №16/26","Служба у справах дітей","2014 рік",110,null,"-",110]
[null,null,null,null,"2015 рік",117,null,"-",117]
["Всього по програмі",null,null,null,null,227,null,"-",227]
[3,"Міська Програма забезпечення житлом, дітей, сиріт, дітей позбавлених                 батьківських прав","Р-ня ЛМР від 06.06.2012 №25/107","Служба у справах дітей","2014 рік",400,null,200,200]
[null,null,null,null,"2015 рік",550,null,275,275]
["Всього по програмі",null,null,null,null,950,null,{"$f":"SUM(H16:H17)","v":475},{"$f":"SUM(I16:I17)","v":475}]
["Всього по відділу",null,null,null,null,{"$f":"SUM(F15+F18)","v":1177},null,475,{"$f":"SUM(I15+I18)","v":702}]
["ЛМЦССС для дітей та молоді"]
[4,"Міська програма соціально-правового захисту дітей на 2012-2016 роки                                                          ","Р-ня ЛМР від 01.12.2011 №16/26","Відділ у справах сім'ї та молоді, Луцький міський центр соціальних служб для сім'ї, дітей та молоді","2014 рік",20,null,"-",20]
[null,null,null,null,"2015 рік",30,null,"-",30]
["Всього по програмі",null,null,null,null,50,null,"-",50]
[5,"Міська програма підтримки дітей, молоді, жінок та сім'ї на період до 2015 року                                                                      ","Р-ня ЛМР від 01.12.2011 №16/25","Луцький міський центр соціальних служб для сім'ї, дітей та молоді","2014 рік",30,null,"-",30]
[null,null,null,null,"2015 рік",40,null,"-",40]
["Всього по програмі",null,null,null,null,70,null,"-",70]
["Всього по відділу",null,null,null,null,{"$f":"SUM(F23+F26)","v":120},null,"-",120]
["Міський центр зайнятості"]
[6,"Програма зайнятості населення м. Луцька на період до 2017 року                                                           ","Р-ня ЛМР від 25.09.2013 № 45/30","Департамент соціальної політики, Луцький міський центр зайнятості","2014 рік",60,null,"-",30]
[null,null,null,null,"2015 рік",60,null,"-",30]
["Всього по програмі",null,null,null,null,120,null,"-",{"$f":"SUM(I29:I30)","v":60}]
["Всього по відділу",null,null,null,null,120,null,"-",60]
["Комітет по фізичній культурі і спорту"]
[7,"Програма розвитку фізичної культури та спорту в місті на 2012-2016 роки                                 ","   Р-ня ЛМР від 28.12.2011 №18/26","Комітет по фізичній культурі і спорту","2014 рік",2526.5,null,"-",2526.5]
[null,null,null,null,"2015 рік",2981,null,"-",2981]
["Всього по програмі",null,null,null,null,{"$f":"SUM(F34:F35)","v":5507.5},null,"-",{"$f":"SUM(I34:I35)","v":5507.5}]
["Всього по комітету",null,null,null,null,5507.5,null,"-",5507.5]
["Департамент соціальної політики"]
[8,"Комплексна міська програма соціального захисту населення на 2011-2015 роки                                                             ","  Р-ня міської ради від 17.12.2010 №2/8, від 27.12.2011 №18/18, від 28.11.2012 №34/34","Департамент  соціальної політики, територіальний центр соціального обслуговування м.Луцька","2014 рік",6156.1,null,"-",6156.1]
[null,null,null,null,"2015 рік",7345.6,null,"-",7345.6]
["Всього по програмі",null,null,null,null,{"$f":"SUM(F39:F40)","v":13501.7},null,"-",{"$f":"SUM(I39:I40)","v":13501.7}]
["Всього по департаменту",null,null,null,null,13501.7,null,"-",13501.7]
["Управління освіти"]
[9,"Міська комплексна програма \"Розвиток освіти м. Луцька на 2010-2015р.р.\"                                        ","Р-ня ЛМР від 24.02.10р.№53/12; внесено зміни р-ням виконачого комітету ЛМР від 28.09.11р.№14/13","Управління освіти ","2014 рік",41035.699999999997,null,1660,39375.699999999997]
[null,null,null,null,"2015 рік",46992,null,1425,45567]
["Всього по програмі",null,null,null,null,{"$f":"SUM(F44:F45)","v":88027.7},null,{"$f":"SUM(H44:H45)","v":3085},{"$f":"SUM(I44:I45)","v":84942.7}]
["Всього по управлінню",null,null,null,null,88027.7,null,3085,84942.7]
["Управління охорони здоров'я"]
[10,"Програма поліпшення репродуктивного здоров'я населення на період до 2015 р.                 "," Р-ня ЛМР від 16.04.08№26/3","Управління охорони здоров'я","2014 рік",915,null,915,"-"]
[null,null,null,null,"2015 рік",935,null,935,"-"]
["Всього по програмі",null,null,null,null,1850,null,{"$f":"SUM(H49:H50)","v":1850},"-"]
[11,"Міська цільова Програма боротьби з онкологічними захворюваннями на 2008-2016р.р. ","Р-ня ЛМР від 05.03.08р.№24/78","Управління охорони здоров'я","2014 рік",89,null,"-",89]
[null,null,null,null,"2015 рік",66,null,"-",66]
["Всього по програмі",null,null,null,null,155,null,"-",{"$f":"SUM(I52:I53)","v":155}]
[12,"Цільова програма імунопрофілактики та захисту населення м.Луцька від інфекційних хвороб на 2011-2015 р.р. ","Р-ня ЛМР від 29.06.2011 №11/103","Управління охорони здоров'я. санітарно-епідеміологічна служба м.Луцька та Луцького району","2014 рік",150,null,"-",150]
[null,null,null,null,"2015 рік",150,null,"-",150]
["Всього по програмі",null,null,null,null,300,null,"-",300]
["Всього по управлінню",null,null,null,null,{"$f":"SUM(F51+F54+F57)","v":2305},null,1850,{"$f":"SUM(I54+I57)","v":455}]
["Управління культури"]
[13,"Міська цільова Програма фінансування культурно - мистецьких та культурологічних заходів у м. Луцьку на 2014 рік","Программа буде внесена на розгляд сесії Луцької міської ради грудні 2013 року","Управління культури","2014 рік",800,null,"-",800]
[14,"Міська цільова Програма фінансування культурно - мистецьких та культурологічних заходів у м. Луцьку на 2015 рік ","Программа буде внесена на розгляд сесії Луцької міської ради грудні 2014 року","Управління культури","2015 рік",800,null,"-",800]
["Всього по програмі",null,null,null,null,{"$f":"SUM(F60:F61)","v":1600},null,"-",{"$f":"SUM(I60:I61)","v":1600}]
[15,"Міська цільова Програма “Інвентаризація об’єктів культурної спадщини на 2014 рік”","Программа буде внесена на розгляд сесії Луцької міської ради грудні 2013 року","Управління культури","2014 рік",63.6,null,"-",63.6]
["Всього по програмі",null,null,null,null,63.6,null,"-",63.6]
["Всього по управлінню",null,null,null,null,{"$f":"SUM(F62+F64)","v":1663.6},null,"-",{"$f":"SUM(I62+I64)","v":1663.6}]
["Відділ інформаційної роботи"]
[16,"Міська програма \"Прозора влада\" на      2013 -2015 рр.                                                                                            ","Р-ня ЛМР від 18.12.12 №35/24","Відділ інформаційної роботи","2014 рік",660,null,"-",660]
[null,null,null,null,"2015 рік",660,null,"-",660]
["Всього по програмі",null,null,null,null,{"$f":"SUM(F67:F68)","v":1320},null,"-",{"$f":"SUM(I67:I68)","v":1320}]
["Всього по відділу",null,null,null,null,1320,null,"-",1320]
["Відділ зв'язків з громадськістю"]
[17,"Програма фінансування заходів державного, обласного, місцевого значення у місті Луцьку на 2014 рік","Программа буде внесена на розгляд сесії Луцької міської ради грудні 2013 року","Відділ зв'язків з громадськістю","2014 рік",500,null,"-",500]
["Всього по програмі",null,null,null,null,500,null,"-",500]
["Всього по відділу",null,null,null,null,500,null,"-",500]
["Управління фінансів та бюджету"]
[18,"Програма управління боргу на                             2014-2018  рік  (проект)","Программа  буде внесена на розгляд сесії Луцької міської ради в грудні 2014 року","Управління фінансів та бюджету","2014 рік",87,null,"-",87]
[null,null,null,null,"2015 рік",120,null,"-",120]
["Всього по програмі",null,null,null,null,207,null,"-",207]
["Всього по управлінню",null,null,null,null,207,null,"-",207]
["Управління з питань надзвичайних ситуацій та цивільного захисту населення"]
[19,"Програма організації рятування людей на водних об'єктах міста в літній період          2013-2015 р.р.                                                                             ","   Р-ня ЛМР від 18.12.12 № 35/22","Виконком міської ради, відділ муніципальної поліції","2014 рік",60,null,"-",60]
[null,null,null,null,"2015 рік",65,null,"-",65]
["Всього по програмі",null,null,null,null,125,null,"-",125]
[20,"Програма забезпечення пожежної безпеки м. Луцька на 2012-2016 роки","Р-ня  ЛМР від 21.12.2011 №117/20","Винавчий комітет, департамент ЖКГ, управління освіти, управління охорони здоров'я, управління культури","2014 рік",487.5,null,"-",487.5]
[null,null,null,null,"2015 рік",624.5,null,"-",624.5]
["Всього по програмі",null,null,null,null,{"$f":"SUM(F84:F85)","v":1112},null,"-",{"$f":"SUM(I84:I85)","v":1112}]
[21,"Програма забезпечення непрацюючого населення засобами хімічного захисту на 2012-2015 роки","Р-ня ЛМР від 01.12.2011 №16/24","Винавчий комітет, департамент ЖКГ, суб'єкти господарювання всіх форм власності","2014 рік",10,null,"-",10]
[null,null,null,null,"2015 рік",10.36,null,"-",10.36]
["Всього по програмі",null,null,null,null,20.36,null,"-",20.36]
["Всього по управлінню",null,null,null,null,{"$f":"SUM(F83+F86+F89)","v":1257.3599999999999},null,"-",{"$f":"SUM(I83+I86+I89)","v":1257.3599999999999}]
["Відділ екології"]
[22,"Комплексна програма ОНПС м.Луцька на 2010-2015 рр. зі змінами, внесенними р-ня ЛМР від 24.04.2013 № 40/121","Р-ня ЛМР від 24.02.10р.№53/16 зі змінами, 24.04.2013 №40/121","Виконавчий комітет та структурні підрозділи ЛМР (підрядні організації)","2014 рік",23815.5,null,4260,1418]
[null,null,null,null,"2015 рік",12165,null,5127.5,2993]
["Всього по програмі",null,null,null,null,{"$f":"SUM(F92:F93)","v":35980.5},null,{"$f":"SUM(H92:H93)","v":9387.5},{"$f":"SUM(I92:I93)","v":4411}]
["Всього по відділу",null,null,null,null,35980.5,null,9387.5,4411]
["Управління економіки"]
[23,"Програма відшкодування відсоткових ставок за залученими кредитами на 2013-2015 роки                                                                 "," Р-ня ЛМР від 28.02.2013 №38/52","Виконавчий комітет","2014 рік",1500,null,"-",1500]
[null,null,null,null,"2015 рік",2000,null,"-",2000]
["Всього по програмі",null,null,null,null,{"$f":"SUM(F97:F98)","v":3500},null,"-",{"$f":"SUM(I97:I98)","v":3500}]
["Всього по управлінню",null,null,null,null,3500,null,"-",3500]
["Управління розвитку підприємництва та реклами"]
[24,"Програма розвитку малого і середнього підприємництва у місті Луцьку на                           2013-2014 роки                                                                    ","Р-ня ЛМР від 30.01.2013 №37/16","Управління розвитку підприємництва та реклами","2014 рік",1066,null,"-",1066]
["Всього по програмі",null,null,null,null,1066,null,"-",1066]
["Всього по управлінню",null,null,null,null,1066,null,"-",1066]
["Управління земельних ресурсів"]
[25,"Програма розвитку земельних відносин в місті Луцьку на 2011-2016 роки;                            ","Р-ня ЛМР від 29.06.11 №11/120 \"Про затвердження програми розвитку земельних відносин в місті Луцьку на 2011-2016 роки\"","Виконавчий комітет, управління земельних ресурсів Луцької міської ради, головне кправління Держземагенства у Волинській області ","2014 рік",1070,null,"-",1070]
[null,null,null,null,"2015 рік",370,null,"-",370]
["Всього по програмі",null,null,null,null,1440,null,"-",1440]
["Всього по управлінню",null,null,null,null,1440,null,"-",1440]
["Управління капітального будівництва"]
[26,"Розвиток електротранспорту м. Луцька на                                2007-2015 рр.                                                       ","Р-ня ЛМР від 06.06.2007 №14/15","Управління капітального будівництва","2014 рік",1000,null,"-",1000]
[null,null,null,null,"2015 рік",1500,null,"-",1500]
["Всього по програмі",null,null,null,null,2500,null,"-",2500]
[27,"Програма забезпечення житлом, дітей сиріт, дітей позбавлених батьківського піклування та осіб з їх числа на 2012-2015 рр.                                                                                     ","Р-ня ЛМР від 06.06.2012 №25/107","Управління капітального будівництва, служба у справах дітей ","2014 рік",1000,null,700,300]
[null,null,null,null,"2015 рік",1171.7,null,775,396.7]
["Всього по програмі",null,null,null,null,2171.6999999999998,null,{"$f":"SUM(H114:H115)","v":1475},{"$f":"SUM(I114:I115)","v":696.7}]
[28,"Обласна цільова програма \"Житло для молоді\"- надання довгострокового пільгового кредиту громадянам на будівництво (реконструкцію) та придбання житла (2010-2017рр)                                                                     "," Р-ня обласної ради від 31.03.2010 №113 та від 27.04.2010 №40/4","Управління капітального будівництва, Волинське регіональне управління Державної спеціалізованої фінансової установи \"Державний фонд сприяння житловому будівництву\"","2014 рік",300,null,"-","-"]
[null,null,null,null,"2015 рік",290,null,"-","-"]
["Всього по програмі",null,null,null,null,590,null,"-","-"]
["Всього по управлінню",null,null,null,null,{"$f":"SUM(F113+F116+F119)","v":5261.7},null,1475,{"$f":"SUM(I113+I116)","v":3196.7}]
["Департамент житлово-комунального господарства"]
[29,"Програма капітального ремонту житлового фонду міста на 2012-2014 роки,                                                                      "," Р-ня ЛМР від 28.12.2011 №18/31","Департамент житлово-комунального господарства","2014 рік",9000,null,3000,6000]
[]
[30,"Програма капітального ремонту житлового фонду міста на 2015 рік (проект)","Програму буде внесено на розгляд сесії Луцької міської ради у  2014 році","Департамент житлово-комунального господарства","2015 рік",10000,null,3000,7000]
["Всього по програмі",null,null,null,null,{"$f":"SUM(F122:F124)","v":19000},null,{"$f":"SUM(H122:H124)","v":6000},{"$f":"SUM(I122:I124)","v":13000}]
[31,"Програма сприяння діяльності об'єднань співвласників багатоквартирних будинків на території м.Луцька,"," Р-ня ЛМР від 28.12.2011 №18/32","Департамент житлово-комунального господарства","2014 рік",4000,null,"-",4000]
[null,null,null,null,"2015 рік",4500,null,"-",4500]
["Всього по програмі",null,null,null,null,{"$f":"SUM(F126:F127)","v":8500},null,"-",{"$f":"SUM(I126:I127)","v":8500}]
[32,"Програма з благоустрою міста на 2013-2015 роки","  Р-ня ЛМР від 30.01.2013 №37/6","Департамент житлово-комунального господарства","2014 рік",41790,null,"-",41790]
[null,null,null,null,"2015 рік",56065,null,"-",56065]
["Всього по програмі",null,null,null,null,{"$f":"SUM(F129:F130)","v":97855},null,"-",{"$f":"SUM(I129:I130)","v":97855}]
[33,"Програма розвитку дорожнього господарства м. Луцька на 2011-2014 роки"," Р-ня ЛМР від 27.01.2011 №5/59","Департамент житлово-комунального господарства","2014 рік",52726,null,"-",52726]
[]
[34,"Програма розвитку дорожнього господарства м. Луцька на 2015 рік (проект)","Програму буде винесено на розгляд сесії Луцької міської ради у  2014 році","Департамент житлово-комунального господарства","2015 рік",60000,null,"-",60000]
["Всього по програмі",null,null,null,null,{"$f":"SUM(F132:F134)","v":112726},null,"-",{"$f":"SUM(I132:I134)","v":112726}]
[35,"Програма \"Реконструкція мереж зовнішнього освітлення м.Луцька на 2011-2014 роки\"","  Р-ня ЛМР від 23.03.2011 №7/2","Департамент житлово-комунального господарства","2014 рік",2874,null,"-",2874]
[]
[36,"Програма \"Реконструкція мереж зовнішнього освітлення м.Луцька на 2015 рік\" (проект)","Програму буде внесено на розгляд сесії Луцької міської ради у  2014 році","Департамент житлово-комунального господарства","2015 рік",3000,null,"-",3000]
["Всього по програмі",null,null,null,null,{"$f":"SUM(F136:F138)","v":5874},null,"-",{"$f":"SUM(I136:I138)","v":5874}]
[37,"Програма будівництва мереж зовнішнього освітлення м. Луцька на 2009-2014 роки"," Р-ня ЛМР від 03.09.2008 №30/4","Департамент житлово-комунального господарства","2014 рік",1000,null,"-",1000]
[38,"Програма будівництва мереж зовнішнього освітлення м. Луцька на 2015 рік (проект)","Програму буде внесено на розгляд сесії Луцької міської ради у  2014 році","Департамент житлово-комунального господарства","2015 рік",1500,null,"-",1500]
["Всього по програмі",null,null,null,null,{"$f":"SUM(F140:F141)","v":2500},null,"-",{"$f":"SUM(I140:I141)","v":2500}]
[39,"Програма реформування і розвитку житлово-комунального господарства м. Луцька на 2010-2014 роки ","  Р-ня ЛМР від 03.11.2010 №68/18","Департамент житлово-комунального господарства","2014 рік",97361.9,null,57956.9,39405]
[40,"Програма реформування і розвитку житлово-комунального господарства м. Луцька на 2015 рік (проект)","Програму буде винесено на розгляд сесії Луцької міської ради у  2014 році","Департамент житлово-комунального господарства","2015 рік",100000,null,60000,40000]
["Всього по програмі",null,null,null,null,{"$f":"SUM(F143:F144)","v":197361.9},null,{"$f":"SUM(H143:H144)","v":117956.9},{"$f":"SUM(I143:I144)","v":79405}]
[41,"Програма обладнання підвищувальних насосних станцій м.Луцька приладами для регулювання тиску води у внутрішньобудинкових мережах","Р-ня ЛМР від 28.03.2012 №22/59","Департамент житлово-комунального господарства","2014 рік",600,null,"-",600]
[null,null,null,null,"2015 рік",700,null,"-",700]
["Всього по програмі",null,null,null,null,{"$f":"SUM(F146:F147)","v":1300},null,"-",{"$f":"SUM(I146:I147)","v":1300}]
["Всього по департаменту",null,null,null,null,{"$f":"SUM(F148+F145+F142+F139+F135+F131+F128+F125)","v":445116.9},null,{"$f":"SUM(H145+H125)","v":123956.9},{"$f":"SUM(I148+I145+I142+I139+I135+I131+I128+I125)","v":321160}]
["Управління туризму та промоції міста"]
[42,"Програма розвитку конкурентно-спроможності туристичної галузі у місті Луцьку на 2013-2014 роки","Р-ня  ЛМР від 28.11.2012 №34/42","Управління туризму та промоції міста, КП \"Центр туристичної інформації та послуг\"","2014 рік",607,null,"-",527]
["Всього по програмі",null,null,null,null,607,null,"-",527]
["Всього по управлінню",null,null,null,null,607,null,"-",527]
["Управління міжнародного співробітництва та проектної діяльності"]
[43,"Програма розвитку транскордонного співробітництва міста Луцька та залучення міжнародної технічної допомоги  на 2013-2014 роки ","Р-ня ЛМР від 26.12.2012 №36/7","Управління міжнародного співробітництва та проектної діяльності","2014 рік",2406,null,"-",511]
["Всього по програмі",null,null,null,null,2406,null,"-",511]
[44,"Програма розвитку транскордонного співробітництва міста Луцька та залучення міжнародної технічної допомоги  на 2015-2016 роки (проект)","Програма буде внесена на розгляд сесії Луцької міської ради у грудні            2014 року","Управління міжнародного співробітництва та проектної діяльності","2015 рік",1500,null,"-",300]
["Всього по програмі",null,null,null,null,1500,null,"-",300]
["Всього по управлінню",null,null,null,null,{"$f":"SUM(F156+F158)","v":3906},null,"-",{"$f":"SUM(I156+I158)","v":811}]
["Відділ програмно-комп'ютерного забезпечення"]
[45,"Програма розвитку електронного урядування та інформатизації міста Луцька на 2013-2015 роки ","Р-ня ЛМР від 28.11.2012 №34/40","Виконавчий комітет, відділ програмно-комп'ютерного забезпечення","2014 рік",2162,null,"-",2162]
[null,null,null,null,"2015 рік",395,null,"-",395]
["Всього по програмі",null,null,null,null,{"$f":"SUM(F161:F162)","v":2557},null,"-",{"$f":"SUM(I161:I162)","v":2557}]
["Всього по відділу",null,null,null,null,2557,null,"-",2557]
[46,"Програма співпраці СНУ ім.Лесі Українки з Луцькою міською радою на 2013-2015 роки, в частині наукових досліджень історії міста Луцька                                   ","Р-ня ЛМР від 18.12.2012 №35\\14","Виконавчий комітет ЛМР","2014 рік",30,null,"-",30]
[null,null,null,null,"2015 рік",50,null,"-",50]
["Всього по програмі",null,null,null,null,{"$f":"SUM(F165:F166)","v":80},null,"-",{"$f":"SUM(I165:I166)","v":80}]
["Міський трудовий архів"]
[47,"Програма забезпечення зберігання документів для соціально-правового захисту громадян в місті Луцьку на 2014-2015 роки ","Р-ня ЛМР від 30.10.2013 №46/113","ЛМР, комунальна установа Луцький міський трудовий архів, управління капітального будівництва міської ради","2014 рік",736.5,null,"-",693.5]
[null,null,null,null,"2015 рік",778.8,null,"-",735.8]
["Всього по програмі",null,null,null,null,{"$f":"SUM(F169:F170)","v":1515.3},null,"-",1429.3]
["Луцький міський відділ УМВС України у Волинській області"]
[48,"Програма заходів щодо забезпечення особистої безпеки громадян та протидії злочинності на 2013-2015 р. ","Р-ня ЛМР від 18.12.2012 №35/70","Луцький міський відділ УМВС України у Волинській області, (Варта порядку)","2014 рік",450,null,"-",450]
[null,null,null,null,"2015 рік",450,null,"-",450]
["Всього по програмі",null,null,null,null,{"$f":"SUM(F173:F174)","v":900},null,"-",{"$f":"SUM(I173:I174)","v":900}]
["Потреба в коштах всього на:",null,null,null,"2014 рік",{"$f":"SUM(F173+F169+F165+F161+F155+F151+F146+F143+F140+F136+F132+F129+F126+F122+F117+F114+F111+F106+F102+F97+F92+F87+F84+F81+F76+F72+F67+F63+F60+F55+F52+F49+F44+F39+F34+F29+F24+F21+F16+F13+F8)","v":299950.3},null,{"$f":"SUM(H143+H122+H114+H92+H49+H44+H16)","v":68691.899999999994},{"$f":"SUM(I173+I169+I165+I161+I155+I151+I146+I143+I140+I136+I132+I129+I126+I122+I114+I111+I106+I102+I97+I92+I87+I84+I81+I76+I72+I67+I63+I60+I55+I52+I44+I39+I34+I29+I24+I21+I16+I13+I8)","v":210772.9}]
[null,null,null,null,"2015 рік",{"$f":"SUM(F174+F170+F166+F162+F157+F147+F144+F141+F138+F134+F130+F127+F124+F118+F115+F112+F107+F98+F93+F88+F85+F82+F77+F68+F61+F56+F53+F50+F45+F40+F35+F30+F25+F22+F17+F14+F9)","v":318276.95999999996},null,{"$f":"SUM(H144+H124+H115+H93+H50+H45+H17)","v":71537.5},{"$f":"SUM(I174+I170+I166+I162+I157+I147+I144+I141+I138+I134+I130+I127+I124+I115+I112+I107+I98+I93+I88+I85+I82+I77+I68+I61+I56+I53+I45+I40+I35+I30+I25+I22+I17+I14+I9)","v":241131.96}]
["Потреба в коштах всього на 2014-2015рр.",null,null,null,null,{"$f":"SUM(F176:F177)","v":618227.26},null,{"$f":"SUM(H176:H177)","v":140229.4},{"$f":"SUM(I176:I177)","v":451904.86}]